fUSD/lending_fUSD_20250506
["ID","MTS","AMOUNT","RATE_DAILY","PERIOD"]
[360072541,1746537046652,-450.0,0.00019692,2]
[360072543,1746537046661,-450.0,0.00019692,2]
[360072545,1746537046670,-470.0,0.00019692,2]
[360072547,1746537046680,-470.0,0.00019692,2]
[360072548,1746537046689,-450.0,0.00019692,2]
[360072550,1746537046698,-450.0,0.00019692,2]
[360072552,1746537046707,-450.0,0.00019692,2]
[360072554,1746537046716,-947.09,0.00019692,2]
[360072556,1746537046725,-450.0,0.00019692,2]
[360072558,1746537046734,-450.0,0.00019692,2]
[360072560,1746537046743,-450.0,0.00019692,2]
[360072562,1746537046752,-450.0,0.00019692,2]
[360072564,1746537046762,-21611.48,0.00019692,2]
[360072566,1746537046772,-500.0,0.00019692,2]
[360072568,1746537046782,-450.0,0.00019693,2]
[360072570,1746537046791,-483.17,0.00019693,2]
[360072572,1746537046800,-450.0,0.00019693,2]
[360072574,1746537046809,-450.0,0.00019693,2]
[360072576,1746537046818,-502.82657551,0.00019693,2]
[360072578,1746537046827,-460.80763731,0.00019693,2]
[360072580,1746537046837,-450.0,0.00019693,2]
[360072582,1746537046846,-450.0,0.00019693,2]
[360072584,1746537046855,-450.0,0.00019693,2]
[360072586,1746537046864,-470.0,0.00019693,2]
[360072588,1746537046873,-587.75358307,0.00019693,2]
[360072590,1746537046882,-450.0,0.00019693,2]
[360072592,1746537046892,-450.0,0.00019693,2]
[360072594,1746537046901,-450.0,0.00019693,2]
[360072596,1746537046910,-450.0,0.00019693,2]
[360072598,1746537046919,-450.0,0.00019693,2]
[360072600,1746537046928,-450.0,0.00019693,2]
[360072602,1746537046937,-211.87322612,0.00019693,2]
[360072604,1746537046946,-470.0,0.00019693,2]
[360072606,1746537046956,-450.0,0.00019693,2]
[360072608,1746537046965,-450.0,0.00019693,2]
[360072610,1746537046975,-450.0,0.00019693,2]
[360072612,1746537046984,-450.0,0.00019693,2]
[360072614,1746537046993,-391.93404043,0.00019693,2]
[360072616,1746537047002,-450.0,0.00019693,2]
[360072618,1746537047012,-593.28,0.00019693,2]
[360072620,1746537047021,-450.0,0.00019693,2]
[360072622,1746537047031,-470.0,0.00019693,2]
[360072624,1746537047040,-450.0,0.00019693,2]
[360072625,1746537047049,-450.0,0.00019693,2]
[360072627,1746537047059,-450.0,0.00019693,2]
[360072629,1746537047068,-406.56,0.00019693,2]
[360072631,1746537047077,-450.0,0.00019693,2]
[360072633,1746537047086,-450.0,0.00019693,2]
[360072635,1746537047095,-450.0,0.00019693,2]
[360072636,1746537047104,-450.0,0.00019693,2]
[360072638,1746537047113,-450.0,0.00019693,2]
[360072640,1746537047122,-450.0,0.00019693,2]
[360072642,1746537047131,-450.0,0.00019693,2]
[360072644,1746537047144,-514.93,0.00019693,2]
[360072646,1746537047153,-585.04,0.00019693,2]
[360072648,1746537047163,-450.0,0.00019693,2]
[360072650,1746537047172,-450.0,0.00019693,2]
[360072652,1746537047183,-450.0,0.00019693,2]
[360072654,1746537047192,-450.0,0.00019693,2]
[360072656,1746537047201,-450.0,0.00019693,2]
[360072658,1746537047210,-450.0,0.00019693,2]
[360072660,1746537047219,-525.59175888,0.00019693,2]
[360072662,1746537047229,-450.0,0.00019693,2]
[360072664,1746537047238,-450.0,0.00019693,2]
[360072666,1746537047247,-450.0,0.00019693,2]
[360072668,1746537047256,-544.75883708,0.00019693,2]
[360072670,1746537047265,-450.0,0.00019693,2]
[360072672,1746537047275,-450.0,0.00019693,2]
[360072674,1746537047285,-450.0,0.00019693,2]
[360072676,1746537047295,-450.0,0.00019693,2]
[360072678,1746537047304,-450.0,0.00019693,2]
[360072680,1746537047315,-450.0,0.00019693,2]
[360072682,1746537047324,-450.0,0.00019693,2]
[360072684,1746537047334,-450.0,0.00019693,2]
[360072686,1746537047343,-450.0,0.00019693,2]
[360072688,1746537047353,-450.0,0.00019693,2]
[360072689,1746537047362,-450.0,0.00019693,2]
[360072691,1746537047371,-450.0,0.00019693,2]
[360072693,1746537047380,-490.0,0.00019693,2]
[360072696,1746537047390,-450.0,0.00019693,2]
[360072697,1746537047401,-450.0,0.00019693,2]
[360072699,1746537047411,-450.0,0.00019693,2]
[360072701,1746537047420,-450.0,0.00019693,2]
[360072703,1746537047429,-450.0,0.00019693,2]
[360072705,1746537047439,-450.0,0.00019693,2]
[360072707,1746537047448,-450.0,0.00019693,2]
[360072709,1746537047457,-450.0,0.00019693,2]
[360072711,1746537047466,-450.0,0.00019693,2]
[360072713,1746537047477,-470.0,0.00019693,2]
[360072715,1746537047488,-450.0,0.00019693,2]
[360072717,1746537047497,-450.0,0.00019693,2]
[360072719,1746537047508,-450.0,0.00019693,2]
[360072721,1746537047518,-450.0,0.00019693,2]
[360072723,1746537047528,-450.0,0.00019693,2]
[360072725,1746537047537,-450.0,0.00019693,2]
[360072727,1746537047547,-494.02654849,0.00019693,2]
[360072729,1746537047557,-450.0,0.00019693,2]
[360072731,1746537047566,-450.0,0.00019693,2]
[360072733,1746537047576,-450.0,0.00019693,2]
[360072735,1746537047585,-450.0,0.00019693,2]
[360072737,1746537047594,-450.0,0.00019693,2]
[360072739,1746537047603,-450.0,0.00019693,2]
[360072741,1746537047612,-450.0,0.00019693,2]
[360072743,1746537047621,-450.0,0.00019693,2]
[360072745,1746537047631,-450.0,0.00019693,2]
[360072747,1746537047640,-470.0,0.00019693,2]
[360072749,1746537047649,-412.98110133,0.00019693,2]
[360072751,1746537047658,-479.30573162,0.00019693,2]
[360072753,1746537047667,-450.0,0.00019693,2]
[360072754,1746537047677,-450.0,0.00019693,2]
[360072756,1746537047686,-450.0,0.00019693,2]
[360072758,1746537047696,-450.0,0.00019693,2]
[360072760,1746537047705,-450.0,0.00019693,2]
[360072762,1746537047714,-465.07820557,0.00019693,2]
[360072764,1746537047725,-463.55223196,0.00019693,2]
[360072766,1746537047734,-450.0,0.00019693,2]
[360072768,1746537047743,-450.0,0.00019693,2]
[360072770,1746537047754,-176.05,0.00019693,2]
[360072772,1746537047763,-473.54790288,0.00019693,2]
[360072774,1746537047772,-450.0,0.00019693,2]
[360072776,1746537047781,-450.0,0.00019693,2]
[360072778,1746537047791,-450.0,0.00019693,2]
[360072780,1746537047800,-450.0,0.00019693,2]
[360072782,1746537047809,-487.0687563,0.00019693,2]
[360072784,1746537047818,-450.0,0.00019693,2]
[360072785,1746537047827,-450.0,0.00019693,2]
[360072787,1746537047835,-450.0,0.00019693,2]
[360072789,1746537047845,-433.69850384,0.00019693,2]
[360072791,1746537047854,-450.0,0.00019693,2]
[360072793,1746537047863,-450.0,0.00019693,2]
[360072795,1746537047873,-450.0,0.00019693,2]
[360072797,1746537047882,-490.87,0.00019693,2]
[360072799,1746537047892,-450.0,0.00019693,2]
[360072801,1746537047901,-470.0,0.00019693,2]
[360072803,1746537047911,-373.92,0.00019693,2]
[360072805,1746537047921,-450.0,0.00019693,2]
[360072807,1746537047931,-450.0,0.00019693,2]
[360072809,1746537047940,-266.43,0.00019693,2]
[360072811,1746537047950,-450.0,0.00019693,2]
[360072813,1746537047959,-450.0,0.00019693,2]
[360072815,1746537047969,-394.77,0.00019693,2]
[360072817,1746537047978,-450.0,0.00019693,2]
[360072819,1746537047987,-450.0,0.00019693,2]
[360072821,1746537047996,-450.0,0.00019693,2]
[360072823,1746537048006,-450.0,0.00019693,2]
[360072825,1746537048016,-450.0,0.00019693,2]
[360072826,1746537048026,-450.0,0.00019693,2]
[360072828,1746537048035,-450.0,0.00019693,2]
[360072831,1746537048047,-450.0,0.00019693,2]
[360072832,1746537048057,-547.43514998,0.00019693,2]
[360072834,1746537048067,-450.0,0.00019693,2]
[360072836,1746537048076,-450.0,0.00019693,2]
[360072838,1746537048087,-450.0,0.00019693,2]
[360072840,1746537048096,-450.0,0.00019693,2]
[360072842,1746537048106,-764.89,0.00019693,2]
[360072844,1746537048115,-450.0,0.00019693,2]
[360072846,1746537048124,-450.0,0.00019693,2]
[360072848,1746537048134,-450.0,0.00019693,2]
[360072850,1746537048148,-470.0,0.00019693,2]
[360072852,1746537048159,-450.0,0.00019693,2]
[360072854,1746537048168,-450.0,0.00019693,2]
[360072856,1746537048178,-661.28,0.00019693,2]
[360072858,1746537048190,-450.0,0.00019693,2]
[360072860,1746537048199,-450.0,0.00019693,2]
[360072862,1746537048209,-450.0,0.00019693,2]
[360072864,1746537048220,-450.0,0.00019693,2]
[360072866,1746537048230,-450.0,0.00019693,2]
[360072868,1746537048240,-450.0,0.00019693,2]
[360072870,1746537048250,-470.0,0.00019693,2]
[360072872,1746537048260,-580.13669269,0.00019693,2]
[360072874,1746537048269,-450.0,0.00019693,2]
[360072876,1746537048279,-450.0,0.00019693,2]
[360072878,1746537048289,-450.0,0.00019693,2]
[360072880,1746537048299,-450.0,0.00019693,2]
[360072882,1746537048308,-450.0,0.00019693,2]
[360072884,1746537048317,-450.0,0.00019693,2]
[360072886,1746537048326,-470.0,0.00019693,2]
[360072888,1746537048335,-7541.5,0.00019693,2]
[360072890,1746537048345,-450.0,0.00019693,2]
[360072892,1746537048355,-450.0,0.00019693,2]
[360072894,1746537048364,-450.0,0.00019693,2]
[360072896,1746537048374,-450.0,0.00019693,2]
[360072898,1746537048383,-450.0,0.00019693,2]
[360072900,1746537048393,-489.49,0.00019693,2]
[360072902,1746537048402,-846.636571,0.00019693,2]
[360072904,1746537048412,-1668.53,0.00019693,2]
[360072905,1746537048421,-450.0,0.00019693,2]
[360072907,1746537048431,-476.7,0.00019693,2]
[360072909,1746537048439,-450.0,0.00019693,2]
[360072911,1746537048449,-980.397701,0.00019693,2]
[360072913,1746537048458,-450.0,0.00019693,2]
[360072915,1746537048468,-1134.450667,0.00019693,2]
[360072917,1746537048477,-450.0,0.00019693,2]
[360072919,1746537048486,-450.0,0.00019693,2]
[360072921,1746537048496,-705.89,0.00019693,2]
[360072923,1746537048507,-1608.56,0.00019693,2]
[360072925,1746537048517,-350608.25296262,0.00019693,2]
[360072927,1746537048526,-50294.11160034,0.00019694,2]
[360072929,1746537048536,-451.57967505,0.00019694,2]
[360072931,1746537048545,-450.0,0.00019694,2]
[360072933,1746537048554,-470.0,0.00019694,2]
[360072935,1746537048564,-500.0,0.00019694,2]
[360072937,1746537048573,-450.0,0.00019694,2]
[360072939,1746537048582,-450.0,0.00019694,2]
[360072941,1746537048591,-264.55646485,0.00019694,2]
[360072943,1746537048600,-450.0,0.00019694,2]
[360072945,1746537048610,-574.61771058,0.00019694,2]
[360072947,1746537048619,-450.0,0.00019694,2]
[360072949,1746537048628,-450.0,0.00019694,2]
[360072951,1746537048636,-450.0,0.00019694,2]
[360072953,1746537048646,-450.0,0.00019694,2]
[360072955,1746537048655,-358.0,0.00019694,2]
[360072957,1746537048664,-450.0,0.00019694,2]
[360072959,1746537048673,-470.0,0.00019694,2]
[360072960,1746537048682,-450.0,0.00019694,2]
[360072962,1746537048691,-450.0,0.00019694,2]
[360072965,1746537048700,-450.0,0.00019694,2]
[360072967,1746537048709,-450.0,0.00019694,2]
[360072968,1746537048718,-450.0,0.00019694,2]
[360072970,1746537048728,-318.97367761,0.00019694,2]
[360072972,1746537048737,-450.0,0.00019694,2]
[360072974,1746537048746,-450.0,0.00019694,2]
[360072976,1746537048756,-470.0,0.00019694,2]
[360072978,1746537048766,-450.0,0.00019694,2]
[360072980,1746537048775,-450.0,0.00019694,2]
[360072982,1746537048785,-470.0,0.00019694,2]
[360072984,1746537048794,-470.0,0.00019694,2]
[360072987,1746537048805,-450.0,0.00019694,2]
[360072989,1746537048814,-450.0,0.00019694,2]
[360072990,1746537048823,-490.0,0.00019694,2]
[360072992,1746537048833,-490.0,0.00019694,2]
[360072994,1746537048843,-490.0,0.00019694,2]
[360072996,1746537048852,-450.0,0.00019694,2]
[360072998,1746537048862,-461.22329815,0.00019694,2]
[360073001,1746537048872,-450.0,0.00019694,2]
[360073003,1746537048882,-450.0,0.00019694,2]
[360073004,1746537048891,-450.0,0.00019694,2]
[360073007,1746537048901,-500.0,0.00019694,2]
[360073008,1746537048910,-450.0,0.00019695,2]
[360073011,1746537048920,-450.0,0.00019695,2]
[360073012,1746537048930,-450.0,0.00019695,2]
[360073014,1746537048939,-450.0,0.00019695,2]
[360073016,1746537048948,-450.0,0.00019695,2]
[360073018,1746537048957,-450.0,0.00019695,2]
[360073020,1746537048967,-450.0,0.00019695,2]
[360073022,1746537048977,-450.0,0.00019695,2]
[360073024,1746537048986,-450.0,0.00019695,2]
[360073026,1746537048996,-450.0,0.00019695,2]
[360073028,1746537049006,-450.0,0.00019695,2]
[360073030,1746537049016,-450.0,0.00019695,2]
[360073032,1746537049026,-450.0,0.00019695,2]
[360073034,1746537049035,-450.0,0.00019695,2]
[360073036,1746537049046,-450.0,0.00019695,2]
[360073051,1746537049177,-450.0,0.00019695,2]
[360073053,1746537049189,-450.0,0.00019695,2]
[360073055,1746537049198,-450.0,0.00019695,2]
[360073057,1746537049207,-450.0,0.00019695,2]
[360073059,1746537049216,-450.0,0.00019695,2]
[360073061,1746537049227,-450.0,0.00019695,2]
[360073063,1746537049236,-450.0,0.00019695,2]
[360073064,1746537049245,-450.0,0.00019695,2]
[360073065,1746537049255,-470.0,0.00019695,2]
[360073067,1746537049265,-450.0,0.00019695,2]
[360073068,1746537049274,-450.0,0.00019695,2]
[360073070,1746537049283,-514.93,0.00019695,2]
[360073071,1746537049292,-450.0,0.00019695,2]
[360073072,1746537049302,-450.0,0.00019695,2]
[360073073,1746537049311,-450.0,0.00019695,2]
[360073074,1746537049321,-450.0,0.00019695,2]
[360073075,1746537049330,-450.0,0.00019695,2]
[360073076,1746537049339,-450.0,0.00019695,2]
[360073077,1746537049349,-450.0,0.00019695,2]
[360073078,1746537049358,-526.9,0.00019695,2]
[360073079,1746537049367,-470.0,0.00019695,2]
[360073080,1746537049377,-450.0,0.00019695,2]
[360073081,1746537049386,-470.0,0.00019695,2]
[360073083,1746537049395,-450.0,0.00019695,2]
[360073085,1746537049405,-450.0,0.00019695,2]
[360073087,1746537049414,-450.0,0.00019695,2]
[360073088,1746537049423,-450.0,0.00019695,2]
[360073089,1746537049432,-450.0,0.00019695,2]
[360073090,1746537049441,-450.0,0.00019695,2]
[360073091,1746537049451,-450.0,0.00019695,2]
[360073092,1746537049460,-450.0,0.00019695,2]
[360073093,1746537049469,-450.0,0.00019695,2]
[360073094,1746537049479,-450.0,0.00019695,2]
[360073095,1746537049488,-470.0,0.00019695,2]
[360073096,1746537049497,-470.0,0.00019695,2]
[360073097,1746537049506,-450.0,0.00019695,2]
[360073098,1746537049515,-450.0,0.00019695,2]
[360073099,1746537049525,-582.42522966,0.00019696,2]
[360073100,1746537049534,-450.0,0.00019696,2]
[360073101,1746537049543,-450.0,0.00019696,2]
[360073102,1746537049553,-450.0,0.00019696,2]
[360073103,1746537049562,-450.0,0.00019696,2]
[360073105,1746537049571,-500.0,0.00019696,2]
[360073107,1746537049581,-450.0,0.00019696,2]
[360073109,1746537049590,-450.0,0.00019696,2]
[360073111,1746537049599,-450.0,0.00019696,2]
[360073112,1746537049607,-450.0,0.00019696,2]
[360073114,1746537049617,-450.0,0.00019696,2]
[360073115,1746537049627,-450.0,0.00019696,2]
[360073116,1746537049636,-450.0,0.00019696,2]
[360073117,1746537049645,-450.0,0.00019696,2]
[360073118,1746537049654,-450.0,0.00019696,2]
[360073119,1746537049663,-450.0,0.00019696,2]
[360073120,1746537049673,-450.0,0.00019696,2]
[360073121,1746537049682,-450.0,0.00019696,2]
[360073122,1746537049691,-450.0,0.00019696,2]
[360073123,1746537049701,-450.0,0.00019696,2]
[360073124,1746537049710,-450.0,0.00019696,2]
[360073125,1746537049719,-450.0,0.00019696,2]
[360073126,1746537049728,-450.0,0.00019696,2]
[360073127,1746537049737,-532.32903879,0.00019696,2]
[360073128,1746537049746,-450.0,0.00019696,2]
[360073129,1746537049755,-450.0,0.00019696,2]
[360073130,1746537049764,-450.0,0.00019696,2]
[360073131,1746537049773,-450.0,0.00019696,2]
[360073132,1746537049782,-947.09,0.00019696,2]
[360073133,1746537049791,-450.0,0.00019696,2]
[360073134,1746537049801,-450.0,0.00019696,2]
[360073135,1746537049812,-21611.48,0.00019696,2]
[360073136,1746537049821,-408.29153403,0.00019697,2]
[360073137,1746537049830,-1000.0,0.000197,2]
[360073138,1746537049839,-2723.26599533,0.00019707,2]
[360073139,1746537049849,-6482.8997965,0.00019712,2]
[360073140,1746537049858,-8243.2655154,0.00019718,2]
[360073141,1746537049867,-2723.26599533,0.00019718,2]
[360073142,1746537049877,-536.74955093,0.0001972,2]
[360073143,1746537049886,-1143.77171811,0.00019725,2]
[360073144,1746537049895,-539.78857076,0.00019726,2]
[360073145,1746537049905,-166.3091093,0.00019726,2]
[360073146,1746537049924,-1146.52595676,0.00019727,2]
[360073147,1746537049933,-6482.8997965,0.00019732,2]
[360073148,1746537049942,-21503.96583696,0.00019734,2]
[360073149,1746537049952,-1143.77171811,0.00019736,2]
[360073151,1746537049961,-21503.96583696,0.00019746,2]
[360073153,1746537049970,-2270.98745964,0.00019747,2]
[360073155,1746537049980,-350608.25296262,0.00019749,2]
[360073157,1746537049989,-2270.98745964,0.00019761,2]
[360073159,1746537049999,-451.81482292,0.00019761,2]
[360073161,1746537050008,-170.90452185,0.00019763,2]
[360073163,1746537050018,-8243.2655154,0.00019764,2]
[360073165,1746537050027,-536.74955093,0.00019765,2]
[360073167,1746537050038,-18098.18044263,0.00019765,2]
[360073169,1746537050047,-151.0,0.00019775,2]
[360073171,1746537050056,-151.0,0.00019778,2]
[360073172,1746537050066,-1146.52595676,0.00019781,2]
[360073173,1746537050075,-151.0,0.00019782,2]
[360073174,1746537050084,-151.0,0.00019782,2]
[360073175,1746537050093,-539.78857076,0.00019784,2]
[360073176,1746537050103,-166.3091093,0.00019784,2]
[360073177,1746537050112,-151.0,0.00019785,2]
[360073178,1746537050122,-490.87,0.00019797,2]
[360073179,1746537050132,-450.0,0.00019797,2]
[360073180,1746537050146,-450.0,0.00019797,2]
[360073181,1746537050156,-258.23,0.00019797,2]
[360073182,1746537050165,-450.0,0.00019797,2]
[360073183,1746537050175,-450.0,0.00019797,2]
[360073184,1746537050186,-764.89,0.00019797,2]
[360073185,1746537050196,-450.0,0.00019797,2]
[360073186,1746537050206,-450.0,0.00019797,2]
[360073187,1746537050216,-450.0,0.00019797,2]
[360073188,1746537050225,-450.0,0.00019797,2]
[360073189,1746537050235,-846.636571,0.00019797,2]
[360073190,1746537050244,-980.397701,0.00019797,2]
[360073191,1746537050253,-450.0,0.00019797,2]
[360073192,1746537050263,-1134.450667,0.00019797,2]
[360073193,1746537050273,-705.89,0.00019797,2]
[360073194,1746537050282,-450.0,0.00019798,2]
[360073195,1746537050291,-450.0,0.00019798,2]
[360073196,1746537050301,-450.0,0.00019798,2]
[360073197,1746537050311,-450.0,0.00019798,2]
[360073198,1746537050321,-450.0,0.00019798,2]
[360073199,1746537050331,-18098.18044263,0.00019798,2]
[360073200,1746537050340,-393.23658822,0.00019798,2]
[360073201,1746537050350,-550.53,0.00019798,2]
[360073202,1746537050359,-450.0,0.00019798,2]
[360073203,1746537050369,-450.0,0.00019798,2]
[360073204,1746537050378,-450.0,0.00019798,2]
[360073205,1746537050387,-450.0,0.00019798,2]
[360073206,1746537050397,-450.0,0.00019798,2]
[360073207,1746537050406,-450.0,0.00019798,2]
[360073208,1746537050416,-450.0,0.00019798,2]
[360073209,1746537050425,-450.0,0.00019798,2]
[360073210,1746537050437,-450.0,0.00019798,2]
[360073211,1746537050447,-450.0,0.00019798,2]
[360073212,1746537050456,-450.0,0.00019798,2]
[360073213,1746537050466,-450.0,0.00019798,2]
[360073214,1746537050476,-450.0,0.00019798,2]
[360073215,1746537050485,-450.0,0.00019798,2]
[360073216,1746537050494,-470.0,0.00019798,2]
[360073217,1746537050504,-450.0,0.00019798,2]
[360073218,1746537050514,-450.0,0.00019798,2]
[360073219,1746537050523,-450.0,0.00019798,2]
[360073220,1746537050533,-450.0,0.00019798,2]
[360073221,1746537050542,-450.0,0.00019798,2]
[360073222,1746537050552,-661.28,0.00019798,2]
[360073223,1746537050561,-450.0,0.00019798,2]
[360073224,1746537050570,-468.75322173,0.00019798,2]
[360073225,1746537050579,-450.0,0.00019798,2]
[360073226,1746537050589,-214.04,0.00019798,2]
[360073227,1746537050598,-450.0,0.00019798,2]
[360073228,1746537050608,-450.0,0.00019798,2]
[360073229,1746537050617,-450.0,0.00019798,2]
[360073230,1746537050627,-450.0,0.00019798,2]
[360073231,1746537050637,-270.8,0.00019798,2]
[360073232,1746537050646,-450.0,0.00019798,2]
[360073233,1746537050655,-7541.5,0.00019798,2]
[360073234,1746537050664,-450.0,0.00019798,2]
[360073235,1746537050673,-489.49,0.00019798,2]
[360073236,1746537050682,-1668.53,0.00019798,2]
[360073237,1746537050692,-450.0,0.00019798,2]
[360073238,1746537050701,-450.0,0.00019798,2]
[360073239,1746537050711,-1608.56,0.00019798,2]
[360073240,1746537050721,-358.24356024,0.00019799,2]
[360073241,1746537050731,-220.06512454,0.00019799,2]
[360073242,1746537050740,-408.29153403,0.00019799,2]
[360073243,1746537050750,-1477.9643,0.000198,2]
[360073244,1746537050759,-150.0,0.00019806,2]
[360073245,1746537050768,-8243.2655154,0.00019809,2]
[360073246,1746537050778,-536.74955093,0.0001981,2]
[360073247,1746537050788,-151.0,0.00019813,2]
[360073248,1746537050797,-358.24356023,0.00019816,2]
[360073249,1746537050807,-151.0,0.00019821,2]
[360073250,1746537050816,-220.0651245,0.00019824,2]
[360073251,1746537050825,-358.24356023,0.00019833,2]
[360073252,1746537050834,-2000.0,0.00019839,2]
[360073253,1746537050844,-166.3091093,0.00019842,2]
[360073254,1746537050854,-358.24356023,0.0001985,2]
[360073255,1746537050863,-220.0651245,0.0001985,2]
[360073256,1746537050873,-8243.2655154,0.00019855,2]
[360073257,1746537050882,-536.74955093,0.00019855,2]
[360073258,1746537050892,-150.0,0.00019855,2]
[360073259,1746537050901,-12500.0,0.00019856,2]
[360073260,1746537050911,-500.0,0.00019863,2]
[360073261,1746537050921,-500.0,0.00019863,2]
[360073262,1746537050931,-230.17848616,0.00019864,2]
[360073263,1746537050940,-12500.0,0.00019865,2]
[360073264,1746537050949,-358.24356023,0.00019866,2]
[360073265,1746537050958,-500.0,0.00019873,2]
[360073266,1746537050968,-500.0,0.00019873,2]
[360073267,1746537050977,-633.24653396,0.00019873,2]
[360073268,1746537050987,-500.0,0.00019873,2]
[360073269,1746537050996,-501.93748199,0.00019873,2]
[360073270,1746537051005,-500.89911374,0.00019873,2]
[360073271,1746537051015,-500.0,0.00019873,2]
[360073272,1746537051024,-509.37765771,0.00019873,2]
[360073273,1746537051034,-500.0,0.00019873,2]
[360073274,1746537051044,-500.0,0.00019873,2]
[360073275,1746537051053,-501.30883628,0.00019873,2]
[360073276,1746537051064,-500.0,0.00019873,2]
[360073277,1746537051073,-271.11682678,0.00019873,2]
[360073278,1746537051082,-211.41041059,0.00019873,2]
[360073279,1746537051091,-331.13899489,0.00019873,2]
[360073280,1746537051100,-500.0,0.00019873,2]
[360073281,1746537051110,-501.83092914,0.00019873,2]
[360073282,1746537051119,-500.0,0.00019873,2]
[360073283,1746537051129,-500.0,0.00019873,2]
[360073284,1746537051141,-500.79974949,0.00019873,2]
[360073285,1746537051150,-315.8142885,0.00019873,2]
[360073286,1746537051159,-500.77873078,0.00019873,2]
[360073287,1746537051169,-500.0,0.00019873,2]
[360073288,1746537051178,-160.5770122,0.00019873,2]
[360073289,1746537051187,-502.07702519,0.00019873,2]
[360073290,1746537051197,-501.59038159,0.00019873,2]
[360073291,1746537051207,-500.0,0.00019873,2]
[360073292,1746537051216,-500.0,0.00019873,2]
[360073293,1746537051225,-450.0,0.00019873,2]
[360073294,1746537051234,-150.31118373,0.00019873,2]
[360073295,1746537051243,-296.85328452,0.00019873,2]
[360073296,1746537051254,-255.0,0.00019873,2]
[360073297,1746537051263,-500.0,0.00019873,2]
[360073298,1746537051272,-180.81,0.00019873,2]
[360073299,1746537051281,-450.0,0.00019873,2]
[360073300,1746537051291,-450.0,0.00019873,2]
[360073301,1746537051301,-450.0,0.00019873,2]
[360073302,1746537051310,-450.0,0.00019873,2]
[360073303,1746537051319,-450.0,0.00019873,2]
[360073304,1746537051328,-291.83,0.00019873,2]
[360073305,1746537051338,-450.0,0.00019873,2]
[360073306,1746537051347,-450.0,0.00019873,2]
[360073307,1746537051356,-450.0,0.00019873,2]
[360073308,1746537051367,-450.0,0.00019873,2]
[360073309,1746537051376,-450.0,0.00019873,2]
[360073310,1746537051385,-470.0,0.00019873,2]
[360073311,1746537051394,-450.0,0.00019873,2]
[360073312,1746537051403,-450.0,0.00019873,2]
[360073313,1746537051413,-450.0,0.00019873,2]
[360073314,1746537051422,-450.0,0.00019873,2]
[360073315,1746537051431,-947.09,0.00019873,2]
[360073316,1746537051441,-21611.48,0.00019873,2]
[360073317,1746537051451,-12500.0,0.00019874,2]
[360073318,1746537051461,-220.0651245,0.00019875,2]
[360073319,1746537051470,-12500.0,0.00019882,2]
[360073320,1746537051481,-358.24356023,0.00019883,2]
[360073321,1746537051491,-225.0,0.00019886,2]
[360073322,1746537051501,-499.65,0.0001989,2]
[360073323,1746537051511,-450.0,0.0001989,2]
[360073324,1746537051522,-450.0,0.0001989,2]